Cogmind - Beta 16 @@@ ROGUE MODE // 2025.11.01 @ 00:24:25 Player: Parallel Result: Destroyed by G-67 Veteran with Field Laser Performance ------------- Evolutions (7) 3500 Regions Visited (11) 2200 Robots Destroyed (59) 295 Value Destroyed (2118) 2118 Prototype IDs (24) 480 Alien Tech Used (0) 0 Bonus (533) 533 TOTAL SCORE: 9126 Bonus ------- Follower Combat Kills 33 Entered Garrisons 200 Aligned with FarCom 300 Cogmind --------- Core Integrity 0/1300 Matter 300/300 Energy 100/100 System Corruption 0% Temperature Cool (21) Movement Core (50) Location -3/Garrison Parts ------- > --- POWER (3) -------- (None) > --- PROPULSION (7) --- (None) > --- UTILITY (8) ------ Hacking Suite > --- WEAPON (3) ------- (None) > --- INVENTORY (5) ---- High-capacity Matter Pod (200) Relay Coupler [Cutter] (34) Relay Coupler [Grunt] Relay Coupler [Sentry] (29) Relay Coupler [Hunter] (19) Peak State ------------ > --- POWER ------------ Micro Nuclear Core Micro Nuclear Core Fusion Compressor > --- PROPULSION ------- Xenon Bombardment Thruster Xenon Bombardment Thruster Xenon Bombardment Thruster Field Propulsion Drive Field Propulsion Drive Nuclear Pulse Array > --- UTILITY ---------- Advanced Weight Redist. System Improved Signal Interpreter Microactuators Focal Shield Hacking Suite Improved System Shield Improved Field Recycling Unit > --- WEAPON ----------- Proton Missile Launcher Lance > --- INVENTORY -------- Field Propulsion Drive High-capacity Matter Pod Remote Datajack [Rating: 87] Favorites ----------- Power Micro Nuclear Core Engine Improved Deuterium Engine Power Core Micro Nuclear Core Propulsion Improved Carbon-fiber Leg Leg Improved Carbon-fiber Leg Wheel Wheel Flight Unit Xenon Bombardment Thruster Utility Small Storage Unit Device Improved Terrain Scanner Storage Small Storage Unit Processor Improved Signal Interpreter Hackware Hacking Suite Protection Light Armor Plating Weapon High-powered Shotgun Energy Gun Medium Laser Ballistic Gun High-powered Shotgun Ballistic Cannon Gauss Cannon Launcher Grenade Launcher Special Weapon Remote Datajack Impact Weapon Hammer Piercing Weapon Lance Build | -11 -10 -10 -10 -9 -8 -7 -6 -5 -4 -3 -3 ------- Run | Yrd Mat Min Exi Min Mat Fac Fac Fac Fac Res Gar Slots Evolved 14 | . . . . . 4 2 2 2 2 2 . Power 2 | . . . . . 1 . . . 1 . . Propulsion 5 | . . . . . 1 . 1 1 . 2 . Utility 6 | . . . . . 2 1 1 1 1 . . Weapon 1 | . . . . . . 1 . . . . . Parts Attached 75 | 9 4 . 1 . 20 3 16 12 1 6 3 Power 15 | 1 1 . 1 . 3 1 3 1 1 1 2 Engine 8 | 1 1 . 1 . 3 1 1 . . . . Core 7 | . . . . . . . 2 1 1 1 2 Reactor . | . . . . . . . . . . . . Propulsion 24 | 4 1 . . . 5 . 5 5 . 4 . Treads . | . . . . . . . . . . . . Leg 13 | 2 1 . . . 5 . 5 . . . . Wheel 2 | 2 . . . . . . . . . . . Hover . | . . . . . . . . . . . . Flight 9 | . . . . . . . . 5 . 4 . Utility 24 | 2 1 . . . 6 1 7 5 . 1 1 Device 8 | 1 . . . . 1 . 2 3 . . 1 Storage 2 | 1 . . . . 1 . . . . . . Processor 7 | . 1 . . . 1 1 3 1 . . . Hackware 3 | . . . . . 1 . . 1 . 1 . Protection 4 | . . . . . 2 . 2 . . . . Artifact . | . . . . . . . . . . . . Weapon 12 | 2 1 . . . 6 1 1 1 . . . Energy Gun 1 | 1 . . . . . . . . . . . Energy Cannon . | . . . . . . . . . . . . Ballistic Gun 3 | 1 . . . . 2 . . . . . . Ballistic Cannon 2 | . . . . . 1 1 . . . . . Launcher 3 | . 1 . . . 1 . 1 . . . . Special Weapon 1 | . . . . . 1 . . . . . . Impact Weapon 1 | . . . . . 1 . . . . . . Slashing Weapon . | . . . . . . . . . . . . Piercing Weapon 1 | . . . . . . . . 1 . . . Special Melee Weapon . | . . . . . . . . . . . . Unidentified Prototypes 1 | . . . . . 1 . . . . . . Parts Lost 30 | . . . . . 2 . 3 3 . 12 10 Power 6 | . . . . . 1 . . 1 . 3 1 Propulsion 8 | . . . . . . . . . . 6 2 Utility 11 | . . . . . 1 . 2 1 . 2 5 Weapon 5 | . . . . . . . 1 1 . 1 2 Highest Loss Streak 10 | . . . . . 1 . 3 3 . 10 10 To Critical Strikes 1 | . . . . . . . . 1 . . . Average Backups 6 | 3 7 8 8 8 7 8 7 4 4 3 4 Power . | . 1 1 . . . . . . . . . Propulsion 2 | . 1 1 1 1 3 4 4 1 1 1 . Utility 2 | . 2 3 3 4 2 1 1 1 1 1 4 Weapon 1 | . 2 3 3 3 1 2 1 . . . . Tool/Special . | . . . . . . . . . . . . Unused Backups 16 | 2 3 . . . 3 . 1 1 1 . 5 Power . | . . . . . . . . . . . . Propulsion 4 | 2 2 . . . . . . . . . . Utility 9 | . . . . . 1 . 1 1 1 . 5 Weapon 3 | . 1 . . . 2 . . . . . . Tool/Special . | . . . . . . . . . . . . Average Slot Usage (%) 89 | . 97 100 100 100 94 89 93 83 78 77 38 Engine 7 | . 14 14 14 14 14 15 4 . . . . Core 4 | . . . . . . . 8 10 10 11 . Leg 21 | . 28 28 28 28 26 23 25 7 . . . Flight 3 | . . . . . . . . 15 21 25 7 Device 9 | . 13 14 14 14 7 7 5 17 21 16 8 Storage 7 | . 14 14 14 14 9 7 6 1 . . . Processor 6 | . . . . . 3 7 13 5 5 4 3 Hackware 5 | . . . . . 7 7 6 5 10 9 8 Protection 2 | . . . . . 7 . 1 1 . . . Ballistic Gun 8 | . 14 14 14 14 6 15 11 3 . . . Ballistic Cannon 1 | . . . . . 4 4 2 . . . . Launcher 4 | . 8 14 14 14 4 . 1 5 5 3 . Impact Weapon 1 | . . . . . 3 . 3 . . . . Peak Build Rating 87 | 9 9 9 10 10 40 45 59 70 73 87 71 Average Rating 39 | 5 8 9 9 10 32 41 51 61 68 80 50 On Entrance 31 | . 9 9 9 10 10 39 45 59 68 69 51 Avg Prop Armor Cover (%) 6 | 5 . . . . 6 6 . 7 . . . Naked Turns . | . . . . . . . . . . . . Heaviest Build 49 | 15 15 14 16 16 41 39 48 49 37 42 28 Greatest Support 69 | 26 20 20 20 20 54 53 69 67 43 57 28 Greatest Overweight (x) 3 | 3 . . . . 1 . . . . 1 . Average Overweight (x) . | . . . . . . . . . . . . Largest Inventory Capacity 20 | 8 8 8 8 8 20 8 8 8 5 5 5 Average Capacity 7 | 7 8 8 8 8 8 8 8 6 5 5 5 Most Carried 8 | 7 8 8 8 8 8 8 8 7 5 5 5 Average Carried 7 | 3 7 8 7 8 7 7 7 4 4 3 4 Final Capacity 8 | 8 8 8 8 8 8 8 8 5 5 5 5 Final Carried 8 | 4 8 8 8 8 8 8 8 4 5 2 5 Class Distribution -------------------- 45% | Mutant 26% | Skirmisher 8% | Assassin 6% | Hacker-Sprinter 5% | Hacker-Mutant 4% | Sprinter Dominant Class ---------------- Mutant | -10/Materials Mutant | -10/Mines Mutant | -10/Exiles Skirmisher | -9/Mines Skirmisher | -8/Materials Skirmisher | -7/Factory Mutant | -6/Factory Sprinter | -5/Factory Hacker-Sprinter | -4/Factory Hacker-Sprinter | -3/Research Hacker-Mutant | -3/Garrison Resources | -11 -10 -10 -10 -9 -8 -7 -6 -5 -4 -3 -3 ----------- Run | Yrd Mat Min Exi Min Mat Fac Fac Fac Fac Res Gar Matter Collected 1749 | 322 122 . . 53 548 . 480 144 . 65 15 Remotely . | . . . . . . . . . . . . Salvage Created 1925 | 205 133 21 . . 336 . 647 234 . 65 284 Parts 115 | 16 14 3 . . 15 . 35 13 . 4 15 Haulers Intercepted . | . . . . . . . . . . . . Recyclers Shooed 1 | . 1 . . . . . . . . . . Parts Field Recycled 37 | . . . . . . . 30 7 . . . Retrieved Matter 487 | . . . . . . . 404 83 . . . Parts Self-Destructed . | . . . . . . . . . . . . Prevented . | . . . . . . . . . . . . Parts Restored . | . . . . . . . . . . . . Kills | -11 -10 -10 -10 -9 -8 -7 -6 -5 -4 -3 -3 ------- Run | Yrd Mat Min Exi Min Mat Fac Fac Fac Fac Res Gar Combat Hostiles Destroyed 40 | . 5 2 . . 12 . 16 . . 1 4 Melee 6 | . . . . . 1 . . . . 1 4 Guns 14 | . 4 . . . 2 . 8 . . . . Cannons 6 | . . . . . 4 . 2 . . . . AOE 13 | . 1 2 . . 4 . 6 . . . . Classes Destroyed 11 | 3 3 . . . 2 . 3 . . . . Worker 6 | 2 . . . . 1 . 3 . . . . Builder 3 | . 1 . . . . . 1 1 . . . Tunneler 4 | 4 . . . . . . . . . . . Recycler 2 | 1 . . . . . . . 1 . . . Watcher 4 | . . . . . 1 . 1 2 . . . Swarmer 13 | . 3 2 . . 4 . 2 . . . 2 Grunt 16 | . 2 . . . 5 . 8 . . . 1 Brawler 1 | . . . . . . . 1 . . . . Sentry 4 | . . . . . 3 . 1 . . . . Hunter 2 | . . . . . . . 1 . . . 1 Programmer 4 | . . . . . . . 3 . . 1 . Best Kill Streak 7 | 3 3 2 . . 5 . 7 2 . 1 3 Combat Bots Only 7 | . 3 2 . . 4 . 7 . . 1 3 Max Kills in Single Turn 4 | 1 2 2 . . 4 . 2 1 . 1 1 Gunslinging . | . . . . . . . . . . . . Exploded 3 | . 1 2 . . 3 . 2 . . . . Melee 1 | . . . . . 1 . . . . 1 1 Uniques/NPCs Destroyed . | . . . . . . . . . . . . Combat | -11 -10 -10 -10 -9 -8 -7 -6 -5 -4 -3 -3 -------- Run | Yrd Mat Min Exi Min Mat Fac Fac Fac Fac Res Gar Hostile Shots Fired 419 | . 25 12 . . 85 . 92 43 . 52 110 Missed 114 | . 12 6 . . 23 . 18 9 . 22 24 Hits 305 | . 13 6 . . 62 . 74 34 . 30 86 Projectile 305 | . 13 6 . . 62 . 74 34 . 30 86 Critical Strikes 16 | . 1 . . . 4 . 3 1 . 4 3 Part Disruptions 2 | . . . . . 2 . . . . . . Damage Taken 5340 | . 135 57 . 27 983 . 1216 417 . 729 1776 Core 1597 | . 6 7 . . 68 . 193 18 . 87 1218 Absorbed by Shields . | . . . . . . . . . . . . Ignored by Resistances 99 | . . . . . . . . 99 . . . Regen/Repaired (Parts) 82 | . . . . . . . 82 . . . . Core Remaining (%) 93 | 100 . . . 94 87 100 77 98 100 . . Volleys Fired 128 | 14 19 4 . . 47 1 35 8 . . . Largest 3 | 2 2 2 . . 2 1 3 2 . . . Hottest 101 | 70 70 50 . . 73 40 101 64 . . . Shots Fired 195 | 28 24 6 . 1 55 1 64 16 . . . Gun 140 | 28 23 4 . . 23 . 48 14 . . . Cannon 33 | . . . . . 23 1 9 . . . . Launcher 20 | . 1 2 . 1 7 . 7 2 . . . Special 2 | . . . . . 2 . . . . . . Kinetic 155 | 14 19 4 . . 46 1 57 14 . . . Thermal 18 | 14 4 . . . . . . . . . . Explosive 18 | . 1 2 . 1 7 . 7 . . . . Electromagnetic 2 | . . . . . . . . 2 . . . Robot Hit Streak 10 | 10 4 . . . 9 . 7 5 . . . Robot Miss Streak 9 | 2 3 3 . . 9 . 4 2 . . . Penetration Max 1 | . . . . . . . 1 . . . . Secondary Targets 2 | . . . . . . . 2 . . . . Max Gunslinging Chain 1 | . . . . . . . 1 . . . . Shots Hit Robots 176 | 15 13 . . . 57 . 40 21 1 12 17 Core Hits 129 | 7 12 1 . 3 37 . 52 7 1 1 8 Critical Kills 3 | . . . . . . . 3 . . . . Critical Parts Destroyed 3 | . . . . . 2 . 1 . . . . Critical Strikes 15 | 1 1 . . . 2 . 6 1 . 2 2 Burn 2 | 1 1 . . . . . . . . . . Destroy 4 | . . . . . . . 4 . . . . Blast 2 | . . . . . . . 2 . . . . Smash 2 | . . . . . 2 . . . . . . Impale 5 | . . . . . . . . 1 . 2 2 Melee Attacks 83 | . . . . . 20 . 9 9 2 14 29 Impact 29 | . . . . . 20 . 9 . . . . Slashing . | . . . . . . . . . . . . Piercing 54 | . . . . . . . . 9 2 14 29 Sneak Attacks 5 | . . . . . 1 . 1 3 . . . Combat Hostiles . | . . . . . . . . . . . . Follow-up Attacks . | . . . . . . . . . . . . Damage Inflicted 5675 | 187 278 132 . 87 1601 . 1490 717 41 442 700 Guns 1363 | 187 166 . . . 332 . 531 147 . . . Cannons 543 | . . . . . 396 . 147 . . . . Explosions 1680 | . 112 132 . 87 541 . 768 40 . . . Melee 2084 | . . . . . 332 . 39 530 41 442 700 Ramming 5 | . . . . . . . 5 . . . . Kinetic 1745 | 51 141 . . . 728 . 678 147 . . . Thermal 161 | 136 25 . . . . . . . . . . Explosive 1598 | . 112 132 . 87 499 . 768 . . . . Electromagnetic 82 | . . . . . 42 . . 40 . . . Impact 371 | . . . . . 332 . 39 . . . . Slashing . | . . . . . . . . . . . . Piercing 1713 | . . . . . . . . 530 41 442 700 Highest Corruption 3 | . 3 3 3 3 2 . 1 . . . . Average Corruption 1 | . 2 3 3 3 2 . 1 . . . . Corruption Purged . | . . . . . . . . . . . . Corruption Blocked . | . . . . . . . . . . . . Effects 54 | . 7 6 9 4 16 . 12 . . . . Message Errors 9 | . . 1 2 . 3 . 3 . . . . Matter Fused 18 | . 3 1 2 2 7 . 3 . . . . Heat Flow Errors 7 | . 1 2 . 1 3 . . . . . . Energy Discharges 4 | . 1 . 2 . . . 1 . . . . Data Loss (minor) 6 | . . 1 1 . . . 4 . . . . Data Loss (major) 4 | . 2 . 1 . 1 . . . . . . Misfires 4 | . . 1 . 1 1 . 1 . . . . Alerts 1 | . . . 1 . . . . . . . . Weapon Failures 1 | . . . . . 1 . . . . . . Overload Shots . | . . . . . . . . . . . . Overflow Damage 170 | . . 30 . . 52 . . . . 56 32 Projectiles . | . . . . . . . . . . . . Explosions 30 | . . 30 . . . . . . . . . Melee 140 | . . . . . 52 . . . . 56 32 Knockbacks 11 | . . . . . 8 . 3 . . . . Impact 1 | . . . . . . . 1 . . . . Kinetic 10 | . . . . . 8 . 2 . . . . Secondary . | . . . . . . . . . . . . Self-Inflicted Damage 138 | . . 13 . 29 51 . 45 . . . . Shots 5 | . . 1 . 1 2 . 1 . . . . Rammed . | . . . . . . . . . . . . Targets Rammed 2 | . . . . . . . 2 . . . . Kicked 2 | . . . . . . . 2 . . . . Crushed . | . . . . . . . . . . . . Highest Temperature 285 | 54 105 220 . 273 285 . 120 180 3 92 . Average Temperature 53 | 20 24 114 . 144 71 . 33 62 2 34 . Received Heat Transfer 1002 | . 63 . . . 423 . 108 27 . 81 300 Effects 1 | . . 1 . . . . . . . . . Energy Bleed 1 | . . 1 . . . . . . . . . Siege Activations . | . . . . . . . . . . . . Martial Activations . | . . . . . . . . . . . . Shielding Activations . | . . . . . . . . . . . . Robots Disrupted . | . . . . . . . . . . . . Combat Hostiles . | . . . . . . . . . . . . Robots Corrupted 1 | . . . . . 1 . . . . . . Combat Hostiles 1 | . . . . . 1 . . . . . . Parts Fried 1 | . . . . . 1 . . . . . . Impact Corruptions 3 | . . . . . 3 . . . . . . Robots Melted . | . . . . . . . . . . . . Combat Hostiles . | . . . . . . . . . . . . Parts Melted 2 | 2 . . . . . . . . . . . Heat Transferred 629 | 481 148 . . . . . . . . . . Parts Sabotaged . | . . . . . . . . . . . . Parts Stolen . | . . . . . . . . . . . . Parts Stripped . | . . . . . . . . . . . . Power Chain Reactions . | . . . . . . . . . . . . Alert | -11 -10 -10 -10 -9 -8 -7 -6 -5 -4 -3 -3 ------- Run | Yrd Mat Min Exi Min Mat Fac Fac Fac Fac Res Gar Maximum Alert Level 1 | . . . . . . . 1 . . . . Low Security (%) 99 | 100 100 100 . 100 100 100 98 100 100 100 100 Level 1 . | . . . . . . . 1 . . . . Level 2 . | . . . . . . . . . . . . Level 3 . | . . . . . . . . . . . . Level 4 . | . . . . . . . . . . . . Level 5 . | . . . . . . . . . . . . High Security . | . . . . . . . . . . . . Max Security . | . . . . . . . . . . . . Peak Influence 200 | 10 60 58 . 6 170 71 200 30 . 30 179 Initial 71 | . . 6 . . . 71 17 25 . . . Average 40 | 1 23 19 . . 52 48 52 8 . 5 80 Influence Increases 1739 | 35 136 71 . 6 487 15 521 129 . 65 274 Destroy 0b10 Robot/C 820 | . 100 40 . . 260 . 320 . . 20 80 Destroy 0b10 Robot/NC 105 | 35 5 . . . 15 . 25 20 . . 5 Destroy Leader 178 | . 20 10 . . 72 . 72 4 . . . Allied During Kill 5 | . . . . . 5 . . . . . . Successful Hack 36 | . . . . . 14 . 22 . . . . Disable Machine 150 | . . . . . 45 15 75 15 . . . Anti-Garrison Action 50 | . . . . . . . . . . . 50 Destroy Structure 110 | . 11 21 . 6 61 . 7 . . . 4 Partial Spotted 45 | . . . . . . . . 30 . . 15 Lose Combat Pursuer 240 | . . . . . 15 . . 60 . 45 120 Influence Decreases 1565 | 35 120 69 18 6 329 137 505 181 . 65 100 Entered New Map 161 | . . 10 18 . . 87 19 27 . . . Time Decay 1200 | 35 120 59 . 6 285 50 446 144 . 55 . Lost Part 170 | . . . . . 20 . 30 10 . 10 100 Lost Ally 34 | . . . . . 24 . 10 . . . . Squads Dispatched 15 | . 1 . . . 3 . 5 4 . 2 . Investigation 3 | . . . . . 1 . 1 . . 1 . Extermination 5 | . . . . . . . 4 1 . . . Reinforcement 4 | . 1 . . . 2 . . . . 1 . Assault . | . . . . . . . . . . . . Garrison 3 | . . . . . . . . 3 . . . Intercept . | . . . . . . . . . . . . Searches Triggered . | . . . . . . . . . . . . Construction Impeded . | . . . . . . . . . . . . Haulers Reinforced . | . . . . . . . . . . . . Active Scanning Responses . | . . . . . . . . . . . . Cargo Convoy Interrupts . | . . . . . . . . . . . . Stealth | -11 -10 -10 -10 -9 -8 -7 -6 -5 -4 -3 -3 --------- Run | Yrd Mat Min Exi Min Mat Fac Fac Fac Fac Res Gar Distress Signals 7 | . . . . . 3 . 1 1 . 2 . Communications Jammed . | . . . . . . . . . . . . Distress Signals . | . . . . . . . . . . . . Times Spotted 109 | . 9 3 . . 26 . 21 8 1 21 20 Peak Tracking Total 17 | . 3 3 . . 7 . 6 3 1 11 17 Tactical Retreats 12 | . . . . . 1 . . 3 . 3 5 Traps | -11 -10 -10 -10 -9 -8 -7 -6 -5 -4 -3 -3 ------- Run | Yrd Mat Min Exi Min Mat Fac Fac Fac Fac Res Gar Traps Triggered 14 | . 2 . . . 1 . 2 1 . 1 7 Indirectly . | . . . . . . . . . . . . Trap Hack Attempts . | . . . . . . . . . . . . Triggered . | . . . . . . . . . . . . Disarmed . | . . . . . . . . . . . . Reprogrammed . | . . . . . . . . . . . . Reused . | . . . . . . . . . . . . Traps Extracted . | . . . . . . . . . . . . Installed . | . . . . . . . . . . . . Triggered . | . . . . . . . . . . . . Machines | -11 -10 -10 -10 -9 -8 -7 -6 -5 -4 -3 -3 ---------- Run | Yrd Mat Min Exi Min Mat Fac Fac Fac Fac Res Gar Machines Disabled 11 | . . . . . 3 1 5 1 . . 1 Max in Single Turn 4 | . . . . . 1 1 4 1 . . 1 Garrison Relay 1 | . . . . . . . . . . . 1 Machines Repaired . | . . . . . . . . . . . . Machines Dismantled . | . . . . . . . . . . . . Machines Sabotaged . | . . . . . . . . . . . . Overloaded Fab Kills . | . . . . . . . . . . . . Hacking | -11 -10 -10 -10 -9 -8 -7 -6 -5 -4 -3 -3 --------- Run | Yrd Mat Min Exi Min Mat Fac Fac Fac Fac Res Gar Machines Accessed 19 | . 1 1 1 . 7 2 3 3 . 1 . Terminals 9 | . 1 . . . 5 1 1 1 . . . Fabricators 1 | . . . . . . . . 1 . . . Repair Stations 1 | . . . . . . . 1 . . . . Recycling Units . | . . . . . . . . . . . . Scanalyzers 5 | . . . . . 2 1 1 1 . . . Garrison Access 1 | . . . . . . . . . . 1 . Total Hacks 41 | . 1 1 1 . 18 5 9 5 . 1 . Successful 29 | . 1 1 1 . 15 4 5 1 . 1 . Failed 11 | . . . . . 2 1 4 4 . . . Catastrophic 1 | . . . . . . . . 1 . . . Database Lockouts 1 | . . . . . 1 . . . . . . Manual 14 | . . . 1 . 8 1 3 1 . . . Terminals 20 | . 1 . . . 10 4 3 2 . . . Fabricators 1 | . . . . . . . . 1 . . . Repair Stations 2 | . . . . . . . 2 . . . . Recycling Units . | . . . . . . . . . . . . Scanalyzers 15 | . . . . . 8 1 4 2 . . . Garrison Access 1 | . . . . . . . . . . 1 . Terminal Hacks 10 | . 1 1 1 . 4 2 . 1 . . . Open Door 1 | . . 1 . . . . . . . . . Terminal Index 1 | . . . . . 1 . . . . . . Alert Level 3 | . 1 . . . 1 . . 1 . . . Security Status 1 | . . . . . . 1 . . . . . Hauler Manifests 1 | . . . . . 1 . . . . . . Zone Layout 2 | . . . . . 1 1 . . . . . Proto ID Catalog 1 | . . . 1 . . . . . . . . Fabricator Hacks . | . . . . . . . . . . . . Repair Station Hacks 2 | . . . . . . . 2 . . . . Scan Component 1 | . . . . . . . 1 . . . . Repair 1 | . . . . . . . 1 . . . . Recycling Unit Hacks . | . . . . . . . . . . . . Scanalyzer 11 | . . . . . 7 1 3 . . . . Insert Component 5 | . . . . . 3 . 2 . . . . Analyze 4 | . . . . . 3 . 1 . . . . Retrieve Study 2 | . . . . . 1 1 . . . . . Garrison Access Hacks 1 | . . . . . . . . . . 1 . Unlock Access 1 | . . . . . . . . . . 1 . Unauthorized Hacks 5 | . . . . . 4 1 . . . . . Terminals 5 | . . . . . 4 1 . . . . . Assimilate 2 | . . . . . 2 . . . . . . Botnet 3 | . . . . . 2 1 . . . . . Fabricators . | . . . . . . . . . . . . Repair Stations . | . . . . . . . . . . . . Recycling Units . | . . . . . . . . . . . . Scanalyzers . | . . . . . . . . . . . . Garrison Access . | . . . . . . . . . . . . Data Cores Recovered 1 | . . . . . 1 . . . . . . Used . | . . . . . . . . . . . . Hacking Detections 12 | . . . . . 6 1 2 3 . . . Full Trace Events 2 | . . . . . 1 . 1 . . . . Feedback Events . | . . . . . . . . . . . . Feedback Blocked . | . . . . . . . . . . . . Robot Schematics Acquired . | . . . . . . . . . . . . Robots Built . | . . . . . . . . . . . . Authchips . | . . . . . . . . . . . . Time . | . . . . . . . . . . . . Total Robot Build Rating . | . . . . . . . . . . . . Part Schematics Acquired 3 | . . . . . 2 . 1 . . . . Parts Built . | . . . . . . . . . . . . Authchips . | . . . . . . . . . . . . Time . | . . . . . . . . . . . . Total Part Build Rating . | . . . . . . . . . . . . Part Studies Acquired 1 | . . . . . . 1 . . . . . Parts Repaired 1 | . . . . . . . 1 . . . . Time 19 | . . . . . . . 19 . . . . Parts Recycled . | . . . . . . . . . . . . Recycled Matter . | . . . . . . . . . . . . Retrieved Matter . | . . . . . . . . . . . . Retrieved Components . | . . . . . . . . . . . . Parts Scanalyzed 4 | . . . . . 3 . 1 . . . . Part Schematics Acquired 3 | . . . . . 2 . 1 . . . . Parts Damaged . | . . . . . . . . . . . . Bothacking | -11 -10 -10 -10 -9 -8 -7 -6 -5 -4 -3 -3 ------------ Run | Yrd Mat Min Exi Min Mat Fac Fac Fac Fac Res Gar Used RIF Installer . | . . . . . . . . . . . . Robots Hacked 1 | . . . . . 1 . . . . . . Non-combat 1 | . . . . . 1 . . . . . . Combat . | . . . . . . . . . . . . Robot Hacks Applied 1 | . . . . . 1 . . . . . . parse_system 1 | . . . . . 1 . . . . . . Relay Couplers Released 4 | . . . . . . . . . . . 4 Machine Destruction 4 | . . . . . . . . . . . 4 Fabnet Peak Effective % . | . . . . . . . . . . . . Robots Rewired . | . . . . . . . . . . . . Allies Hacked . | . . . . . . . . . . . . Hacks Repelled . | . . . . . . . . . . . . Allies | -11 -10 -10 -10 -9 -8 -7 -6 -5 -4 -3 -3 -------- Run | Yrd Mat Min Exi Min Mat Fac Fac Fac Fac Res Gar Total Allies 4 | . . . . 3 1 . . . . . . Largest Group 3 | . . . . 3 3 1 1 . . . . Highest-Rated Group 40 | . . . . 40 40 9 9 . . . . Highest-Rated Ally 16 | . . . . 16 16 9 9 . . . . Total Orders . | . . . . . . . . . . . . Ally Attacks 19 | . . . . . 19 . . . . . . Total Damage 196 | . . . . . 196 . . . . . . Kills 2 | . . . . . 2 . . . . . . Allies Corrupted . | . . . . . . . . . . . . Allies Melted . | . . . . . . . . . . . . Intel | -11 -10 -10 -10 -9 -8 -7 -6 -5 -4 -3 -3 ------- Run | Yrd Mat Min Exi Min Mat Fac Fac Fac Fac Res Gar Active Infowar (turns) 2683 | 13 318 193 423 179 868 117 572 . . . . Terrain 2356 | 13 318 193 423 179 541 117 572 . . . . Machine Analysis 1203 | . . . . . 546 117 540 . . . . Robot Analysis Total . | . . . . . . . . . . . . Derelict Logs Recovered . | . . . . . . . . . . . . Drone Launches . | . . . . . . . . . . . . Drone Recoveries . | . . . . . . . . . . . . Exploration | -11 -10 -10 -10 -9 -8 -7 -6 -5 -4 -3 -3 ------------- Run | Yrd Mat Min Exi Min Mat Fac Fac Fac Fac Res Gar Turns Passed 6143 | 217 333 193 423 179 1433 117 2009 556 67 254 362 Spaces Moved 5142 | 118 222 140 339 150 922 89 1220 845 179 612 306 Core 8 | 8 . . . . . . . . . . . Treads . | . . . . . . . . . . . . Legs 3247 | 71 222 140 339 150 922 89 1220 94 . . . Wheels 39 | 39 . . . . . . . . . . . Hover . | . . . . . . . . . . . . Flight 1848 | . . . . . . . . 751 179 612 306 Fastest Speed 26 | 50 120 120 120 120 120 120 120 31 31 26 37 Average Speed 88 | 114 120 120 120 120 120 122 121 41 31 27 37 Slowest Speed 200 | 200 120 120 120 120 190 123 123 120 31 117 37 Overloaded Moves . | . . . . . . . . . . . . Propulsion Burnouts . | . . . . . . . . . . . . Robots Hopped 6 | . . . . . . . . 1 . 4 1 Potential Cave-ins . | . . . . . . . . . . . . Cave-ins Triggered . | . . . . . . . . . . . . Exploration Rate (%) 27 | 5 47 20 61 39 52 2 21 24 6 19 33 Regions Visited 11 Branch Regions 3 Pre-discovered Areas 1 | . . . . 1 . . . . . . . Known Exits Taken 5 | . . . . . . 1 1 1 1 1 . Unknown Exits Taken 6 | 1 1 1 1 1 1 . . . . . . Scrap Searched 1 | . . . . 1 . . . . . . . Spaces Dug 4 | . . . . . . . 2 . . . 2 Terrain Destroyed 115 | . 10 21 . 6 69 . 7 . . . 2 Melee 4 | . . . . . . . 2 . . . 2 Projectile . | . . . . . . . . . . . . AOE 111 | . 10 21 . 6 69 . 5 . . . . Terrain Rammed . | . . . . . . . . . . . . Walls Destroyed . | . . . . . . . . . . . . Machines Disabled . | . . . . . . . . . . . . Actions | -11 -10 -10 -10 -9 -8 -7 -6 -5 -4 -3 -3 --------- Run | Yrd Mat Min Exi Min Mat Fac Fac Fac Fac Res Gar Total 6420 | 174 267 160 355 149 1156 95 1672 1025 187 671 509 Wait 793 | 15 5 17 14 . 117 . 364 120 . 39 102 Move 5118 | 117 221 139 338 149 921 88 1219 842 178 604 302 Hop 6 | . . . . . . . . 1 . 4 1 Pick Up 57 | 15 9 . 1 . 9 1 4 8 3 3 4 Fast Attach 41 | . 3 . . . 13 3 18 . 1 . 3 Attach 33 | 9 2 . . . 2 . 1 12 . 6 1 Detach 1 | . . . . . . . . 1 . . . Swap 17 | . . . 1 . 11 . 5 . . . . Drop 60 | 4 8 . 1 . 16 2 15 9 3 1 1 Fire 128 | 14 19 4 . . 47 1 35 8 . . . Melee 83 | . . . . . 20 . 9 9 2 14 29 Ram . | . . . . . . . . . . . . Kick 2 | . . . . . . . 2 . . . . Crush . | . . . . . . . . . . . . Escape Stasis 81 | . . . . . . . . 15 . . 66 Rewire . | . . . . . . . . . . . . Trap . | . . . . . . . . . . . . Miscellaneous . | . . . . . . . . . . . . Route ------- -11/Scrapyard -10/Materials (discovered 3 exits: *Mat x2 / *Min) -10/Mines -10/Exiles -9/Mines -8/Materials -7/Factory -6/Factory (discovered 2 exits: *Fac / *Ext) -5/Factory -4/Factory -3/Research -3/Garrison (discovered 1 exit: *Res) History --------- Turn | Location | Event 7 | -11/Scrapyard | Discovered new exit (range 16) 218 | -11/Scrapyard | Entered Materials 301 | -10/Materials | Build established: Mutant 391 | -10/Materials | Discovered new exit (range 3) 405 | -10/Materials | Identified exit to Materials 531 | -10/Materials | Discovered new exit (range 13) 536 | -10/Materials | Discovered exit to Materials (range 16) 551 | -10/Materials | Entered Mines 623 | -10/Mines | Found the Drone Emporium 636 | -10/Mines | Assembled infested the area 665 | -10/Mines | Met 8R-AWN 739 | -10/Mines | Discovered new exit (range 5) 744 | -10/Mines | Entered Exiles 772 | -10/Exiles | Welcomed by 8R-AWN 795 | -10/Exiles | Met EX-HEX 828 | -10/Exiles | Met EX-BIN 891 | -10/Exiles | Aligned with FarCom system 892 | -10/Exiles | Given EX-Vault access code 920 | -10/Exiles | Opened EX-Vault 931 | -10/Exiles | Found Superbattery 977 | -10/Exiles | Warned to stay clear of 0b10 Research branches 1011 | -10/Exiles | Met EX-DEC 1118 | -10/Exiles | Learned about 8R-AWN's background 1151 | -10/Exiles | Discovered new exit (range 15) 1167 | -10/Exiles | Left Exiles lab with Superbattery 1167 | -10/Exiles | Entered Mines 1227 | -9/Mines | Assisted by bots powering up and referring to "LRC-V3" 1340 | -9/Mines | Learned location of Storage (-9) 1340 | -9/Mines | Discovered new exit (range 4) 1346 | -9/Mines | Entered Materials 1346 | -8/Materials | Accompanied by 3 allies 1346 | -8/Materials | Evolved 4 slots: Power x1, Propulsion x1, Utility x2 1604 | -8/Materials | Lost 3 allies 1736 | -8/Materials | Build established: Assassin 1765 | -8/Materials | Discovered new exit (range 16) 1784 | -8/Materials | Central database locked down 2540 | -8/Materials | Build established: Mutant 2779 | -8/Materials | Entered Factory 2779 | -7/Factory | Accompanied by 1 ally 2779 | -7/Factory | Evolved 2 slots: Utility x1, Weapon x1 2815 | -7/Factory | Discovered new exit (range 9) 2859 | -7/Factory | Build established: Skirmisher 2895 | -7/Factory | Identified exit to Factory 2896 | -7/Factory | Entered another Factory area 2896 | -6/Factory | Accompanied by 1 ally 2896 | -6/Factory | Evolved 2 slots: Propulsion x1, Utility x1 3256 | -6/Factory | Destroyed 7 combat bots 3467 | -6/Factory | Lost 3 parts (2u1w) 3749 | -6/Factory | Build established: Mutant 3825 | -6/Factory | Repaired Hpw. Shotgun 4595 | -6/Factory | Discovered new exit (range 15) 4630 | -6/Factory | Identified exit to Extension 4884 | -6/Factory | Discovered new exit (range 9) 4896 | -6/Factory | Identified exit to Factory 4905 | -6/Factory | Entered another Factory area 4905 | -5/Factory | Evolved 2 slots: Propulsion x1, Utility x1 5046 | -5/Factory | Garrison activated, responded to threat 5112 | -5/Factory | Lost 3 parts (1p1u1w) 5441 | -5/Factory | Discovered new exit (range 16) 5461 | -5/Factory | Identified exit to Factory 5461 | -5/Factory | Entered another Factory area 5461 | -4/Factory | Evolved 2 slots: Power x1, Utility x1 5526 | -4/Factory | Discovered new exit (range 7) 5527 | -4/Factory | Identified exit to Research 5528 | -4/Factory | Entered Research 5528 | -3/Research | Evolved 2 slots: Propulsion x2 5671 | -3/Research | Build established: Hacker-Sprinter 5757 | -3/Research | Spotted B-86 Titan 5782 | -3/Research | Identified exit to Garrison 5782 | -3/Research | Entered Garrison 5809 | -3/Garrison | Lost 10 parts (3p5n1u1w) 5832 | -3/Garrison | Triggered checkpoint 5852 | -3/Garrison | Garrison Relay disabled 6006 | -3/Garrison | Triggered checkpoint 6054 | -3/Garrison | Discovered new exit (range 11) 6057 | -3/Garrison | Identified exit to Research 6057 | -3/Garrison | Attempted to access garrison exit controls, blocked by remote lockdown 6063 | -3/Garrison | Build established: Hacker-Mutant 6116 | -3/Garrison | Core integrity fell below 50% 6133 | -3/Garrison | Core integrity fell below 20% 6144 | -3/Garrison | Destroyed by G-67 Veteran with Field Laser Last Messages --------------- 06074_ Phase Shifter destroyed. 06078_ Destroyed Xenon Bombardment Thruster. 06083_ Nuclear Pulse Array destroyed. 06083_ C-45 Heavy ARC bursts open, deploying its payload. 06083_ G-67 Veteran unfolds itself. 06083_ Imp. Field Recycling Unit destroyed. 06083_ Remote Datajack destroyed. 06088_ Lgt. Fission Core destroyed. 06089_ Field Propulsion Array destroyed. 06100_ G-67 Veteran destroyed. 06103_ Microactuators destroyed. 06105_ S-43 Plague suffers critical hit (Impale). 06105_ S-43 Plague destroyed. 06107_ Imp. Signal Interpreter destroyed. 06111_ S-43 Plague destroyed. 06126_ Imp. System Shield destroyed. 06132_ Critical hit (Burn: +37). 06135_ Lance destroyed. Map ----- +----------------------------------------------------+ | ?????????????????????????????????????????????????? | | ?????????????????????????????????????????????????? | | ?????????????????????????????????????????????????? | | ?????????????????????????????????????????????????? | | ?????????????????????????????????????????????????? | | ?????????????????????????????????????????????????? | | ?????????????????????????????????????????????????? | | ?????????????????????????????????????????????????? | | ?????????????????????????????????????????????????? | | ????????????????????????????????????????? ?????? | | ?????????????????????????????????????????^ #????? | | ????????????????????????????????????????? #????? | | ????????????????????????????????????????? #????? | | ?????????????????????????????? ??ssss?? #????? | | ?????????????????????????????T ##""""## #????? | | ?????????????????????????????# #????? | | ?????????????????????????????# #????? | | ?????????????????????????????# #????? | | ?????????????????????????????# ?# ## #????? | | ?????????????Y???????????????# ## ## ###??? | | ?????????????????????????????" #??? | | ?????????????????????????????" #??? | | ????????????????????????####g" #??? | | ????????????????????????#gsg?" ???? | | ????????????????????????#g##?# ## ## #????? | | ????????????????????????#@#??# ## ## #????? | | ??????????????????#######g#### #????? | | ??????????????????# gggglg= # #????? | | ??????????????????#Y########## #????? | | ??????????????????# #????????## ##""""## ##????? | | ??????????????????# #?????????# #?g?g??# #?????? | | ??????????????????# ##????????# #??????# #?????? | | ??????????????????# #????????# #??????# #?????? | | ??????????#########+##????????# #??????# #?????? | | ???# #?????????# #??????# #?????? | | ??????????###"""### #?????????# #??????#^ #?????? | | ??????????????????# #?????????# #??????#^ ####### | | ??????????????????# #?????????# #??????# ^^^ | | ??????????????????# ########### #??????# | | ??????????????????# #??????########## | | ??????????????????+ #???????????????? | | ??????????????????## ###/########???????????????? | | ???????????????????# #?# #???? #????????????????? | | ???????????????????# #?# #???? #????????????????? | | ???????????????????# ### #???? #????????????????? | | ???????????????????# # #???? #????????????????? | | ???????????????????# ### ##### #####????????????? | | ???????????????????# #?# # #????????????? | | ???????????????????# #?# #????????????? | | ?????????????????### #?# # #????????????? | +----------------------------------------------------+ Best States ------------- Heat Dissipation 46 Energy Generation 27 Energy Capacity 480 Matter Stores 300 Matter Capacity 300 Sight Range 16 Terrain Scan Range 16 Terrain Scan Density 10 Additional Mass Support 9 Corruption Containment 8 Armor Coverage 150 Resistance: KI 20 Melee Speed Boost 20 Phase Shifting 5 Evasion (%) 67 Target Analysis 5 Offensive Hacking 10 Defensive Hacking 12 Item Schematics ----------------- Xenon Bombardment Thruster | -8/Materials | Scanalyzed Imp. Grenade Launcher | -8/Materials | Scanalyzed Weight Redist. System | -6/Factory | Scanalyzed Robot Schematics ------------------ None Fabricated ------------ Nothing Repaired ---------- Hpw. Shotgun | 34% | -6/Factory Studied --------- Xenon Bombardment Thruster | -7/Factory | Hacked Alien Tech Used ----------------- None Achievements -------------- None Challenges ------------ None Game ------ Seed BiomechanicalReflexTerrabomb Manual? 0 Play Time 01:25:21 Cumulative 41.9 hours Start 2025.10.31 @ 22:50:09 End 2025.11.01 @ 00:24:25 Sessions 1 Manual Loads 0 Difficulty Rogue Special Mode None Game No. 43 Rogue 33 Adventurer 10 Explorer 0 Win Type - Total 0 Types 0/0/0/0/0/0/0/0/0/0 Lore% 37 Gallery% 30 Achievement% 23 Wizard Run 0 Options --------- Layout 1 ASCII 0 Keyboard 0 Movement Mouse Keybinds 0 Fullscreen 2 Font 32/Smallcaps Map View 50x35 Zoom Use 0% Tactical HUD 1 Map Filters NONE Filters NONE Steam 1 RUN: 7cfdd1ed-4d30-4725-a804-e0b4c5132e00